[Event "*** Titled Tuesday Blitz"]
[Site "Chess.com"]
[Date "2018.05.01"]
[Round "7"]
[White "MasterLeif"]
[Black "juniortay"]
[Result "0-1"]
[WhiteElo "2381"]
[BlackElo "2359"]
[TimeControl "180+2"]
[EndTime "14:35:12 PDT"]
[Termination "juniortay won by checkmate"]

1. e4 {[%clk 0:02:59.2]} 1... c5 {[%clk 0:03:00.4]} 2. Nf3 {[%clk 0:03:00.3]}
2... d6 {[%clk 0:03:01.5]} 3. d4 {[%clk 0:03:01.2]} 3... cxd4 {[%clk 0:03:02.6]}
4. Nxd4 {[%clk 0:03:02.5]} 4... Nf6 {[%clk 0:03:03.7]} 5. Nc3 {[%clk 0:03:02.7]}
5... g6 {[%clk 0:03:04.9]} 6. f4 {[%clk 0:03:02.5]} 6... Nc6 {[%clk 0:03:04.3]}
7. Nxc6 {[%clk 0:03:03.5]} 7... bxc6 {[%clk 0:03:05.1]} 8. e5 {[%clk 0:03:05.4]}
8... Nd7 {[%clk 0:03:05.5]} 9. exd6 {[%clk 0:03:03.4]} 9... exd6 {[%clk
0:03:06.4]} 10. Be3 {[%clk 0:02:56.5]} 10... Be7 {[%clk 0:03:07.3]} 11. Qd2
{[%clk 0:02:51.7]} 11... O-O {[%clk 0:03:07.9]} 12. O-O-O {[%clk 0:02:48.8]}
12... Qa5 {[%clk 0:03:07.9]} 13. Bc4 {[%clk 0:02:48.1]} 13... d5 {[%clk
0:03:04.1]} 14. Bb3 {[%clk 0:02:48.6]} 14... Nf6 {[%clk 0:02:47.7]} 15. Kb1
{[%clk 0:02:49.6]} 15... Bb4 {[%clk 0:02:47.7]} 16. Bd4 {[%clk 0:02:27.5]} 16...
Ne4 {[%clk 0:02:40.2]} 17. Qe3 {[%clk 0:01:24.8]} 17... Bxc3 {[%clk 0:01:36.7]}
18. Bxc3 {[%clk 0:01:00.7]} 18... Nxc3+ {[%clk 0:01:32.7]} 19. Qxc3 {[%clk
0:00:57.3]} 19... Qxc3 {[%clk 0:01:30.7]} 20. bxc3 {[%clk 0:00:59.2]} 20... Ba6
{[%clk 0:01:18.5]} 21. Rhe1 {[%clk 0:00:56.2]} 21... Rfe8 {[%clk 0:01:08.7]} 22.
Kc1 {[%clk 0:00:57.6]} 22... Kf8 {[%clk 0:01:08.5]} 23. Kd2 {[%clk 0:00:57.9]}
23... Rxe1 {[%clk 0:01:02.4]} 24. Rxe1 {[%clk 0:00:59.8]} 24... Re8 {[%clk
0:01:03.3]} 25. Rxe8+ {[%clk 0:01:00.3]} 25... Kxe8 {[%clk 0:01:05.2]} 26. Ke3
{[%clk 0:01:01.5]} 26... Kd7 {[%clk 0:01:06.2]} 27. Ba4 {[%clk 0:00:39.7]} 27...
Kd6 {[%clk 0:01:06.8]} 28. a3 {[%clk 0:00:35.3]} 28... Bc4 {[%clk 0:01:01.3]}
29. g3 {[%clk 0:00:27.6]} 29... Kc5 {[%clk 0:01:00.8]} 30. h4 {[%clk 0:00:20.1]}
30... h5 {[%clk 0:00:59.7]} 31. Bb3 {[%clk 0:00:16.9]} 31... Bb5 {[%clk
0:00:58.4]} 32. Ba2 {[%clk 0:00:15.8]} 32... a5 {[%clk 0:00:58.4]} 33. Bb3
{[%clk 0:00:12.2]} 33... a4 {[%clk 0:00:59.1]} 34. Ba2 {[%clk 0:00:13.7]} 34...
Bc4 {[%clk 0:01:00]} 35. Bxc4 {[%clk 0:00:05.9]} 35... Kxc4 {[%clk 0:01:00.8]}
36. Kd2 {[%clk 0:00:07.8]} 36... c5 {[%clk 0:00:59.4]} 37. Kd1 {[%clk
0:00:06.8]} 37... Kxc3 {[%clk 0:01:00]} 38. Kc1 {[%clk 0:00:08.5]} 38... Kd4
{[%clk 0:00:58.9]} 39. Kd2 {[%clk 0:00:09.4]} 39... Ke4 {[%clk 0:00:56.7]} 40.
Ke2 {[%clk 0:00:10.8]} 40... d4 {[%clk 0:00:55.4]} 41. Kf2 {[%clk 0:00:12.3]}
41... c4 {[%clk 0:00:55.5]} 42. Ke2 {[%clk 0:00:14]} 42... c3 {[%clk 0:00:55.9]}
43. Ke1 {[%clk 0:00:12.6]} 43... Kf3 {[%clk 0:00:54.8]} 44. Kd1 {[%clk
0:00:12.5]} 44... Kxg3 {[%clk 0:00:53.2]} 45. Ke2 {[%clk 0:00:14.4]} 45... Kxf4
{[%clk 0:00:53.6]} 46. Kd3 {[%clk 0:00:16.3]} 46... Ke5 {[%clk 0:00:54.7]} 47.
Kc4 {[%clk 0:00:17.2]} 47... f5 {[%clk 0:00:55.7]} 48. Kb4 {[%clk 0:00:19.1]}
48... f4 {[%clk 0:00:54.8]} 49. Kxa4 {[%clk 0:00:20]} 49... d3 {[%clk
0:00:56.1]} 50. cxd3 {[%clk 0:00:20.7]} 50... c2 {[%clk 0:00:57.4]} 51. d4+
{[%clk 0:00:22.5]} 51... Kxd4 {[%clk 0:00:58.1]} 52. Ka5 {[%clk 0:00:24.4]}
52... c1=Q {[%clk 0:00:59.4]} 53. a4 {[%clk 0:00:26.3]} 53... Kc5 {[%clk
0:00:58.8]} 54. Ka6 {[%clk 0:00:27.6]} 54... Qb1 {[%clk 0:00:59.8]} 55. a5
{[%clk 0:00:29]} 55... Kc6 {[%clk 0:01:01]} 56. Ka7 {[%clk 0:00:30.2]} 56...
Qb7# {[%clk 0:01:01.5]} 0-1

[Event "*** Titled Tuesday Blitz"]
[Site "Chess.com"]
[Date "2018.05.01"]
[Round "7"]
[White "StoreySniper"]
[Black "Fy_Rakotomaharo"]
[Result "0-1"]
[WhiteElo "2356"]
[BlackElo "2492"]
[TimeControl "180+2"]
[EndTime "14:35:19 PDT"]
[Termination "Fy_Rakotomaharo won by resignation"]

1. c4 {[%clk 0:03:00.3]} 1... e5 {[%clk 0:03:00.2]} 2. g3 {[%clk 0:03:00.4]}
2... c6 {[%clk 0:03:01.6]} 3. Bg2 {[%clk 0:02:59.3]} 3... d5 {[%clk 0:03:00.2]}
4. cxd5 {[%clk 0:03:00.3]} 4... cxd5 {[%clk 0:03:02.1]} 5. d4 {[%clk 0:03:01.5]}
5... e4 {[%clk 0:03:01.2]} 6. Nc3 {[%clk 0:03:02.9]} 6... Nc6 {[%clk 0:03:00.7]}
7. Nh3 {[%clk 0:02:58.9]} 7... Bb4 {[%clk 0:02:52.9]} 8. O-O {[%clk 0:02:57]}
8... Nge7 {[%clk 0:02:50.2]} 9. Nf4 {[%clk 0:02:54.8]} 9... O-O {[%clk
0:02:49.1]} 10. Qb3 {[%clk 0:02:50.7]} 10... Bxc3 {[%clk 0:02:43.7]} 11. Qxc3
{[%clk 0:02:46.5]} 11... Bf5 {[%clk 0:02:38.1]} 12. Be3 {[%clk 0:02:41.6]} 12...
Rc8 {[%clk 0:02:38.6]} 13. Qa3 {[%clk 0:02:33.4]} 13... Qa5 {[%clk 0:02:37.5]}
14. Qxa5 {[%clk 0:02:23.5]} 14... Nxa5 {[%clk 0:02:38.4]} 15. Rfc1 {[%clk
0:02:21.7]} 15... Nc4 {[%clk 0:02:36.7]} 16. b3 {[%clk 0:02:21.3]} 16... Nxe3
{[%clk 0:02:36.3]} 17. fxe3 {[%clk 0:02:22.4]} 17... g5 {[%clk 0:02:33.7]} 18.
Nh3 {[%clk 0:02:19.9]} 18... h6 {[%clk 0:02:34.1]} 19. Nf2 {[%clk 0:02:20.4]}
19... Bd7 {[%clk 0:02:32.5]} 20. Nd1 {[%clk 0:02:06.6]} 20... a5 {[%clk
0:02:30.6]} 21. Nc3 {[%clk 0:02:03]} 21... b5 {[%clk 0:02:26.8]} 22. a4 {[%clk
0:01:55.5]} 22... b4 {[%clk 0:02:27.4]} 23. Nd1 {[%clk 0:01:54.7]} 23... f5
{[%clk 0:02:16.8]} 24. Kf2 {[%clk 0:01:44.8]} 24... Kf7 {[%clk 0:02:17.6]} 25.
Ke1 {[%clk 0:01:40]} 25... Ke6 {[%clk 0:02:18.9]} 26. Kd2 {[%clk 0:01:40.6]}
26... Kd6 {[%clk 0:02:20.3]} 27. Nf2 {[%clk 0:01:32.9]} 27... Ng8 {[%clk
0:02:17]} 28. h4 {[%clk 0:01:28]} 28... Nf6 {[%clk 0:02:17]} 29. hxg5 {[%clk
0:01:28.5]} 29... hxg5 {[%clk 0:02:17.8]} 30. Rxc8 {[%clk 0:01:09.2]} 30... Rxc8
{[%clk 0:02:16.7]} 31. Rc1 {[%clk 0:01:08.7]} 31... Rh8 {[%clk 0:02:12.1]} 32.
Rh1 {[%clk 0:01:08.6]} 32... Rxh1 {[%clk 0:02:06.8]} 33. Bxh1 {[%clk 0:01:09.5]}
33... Nh5 {[%clk 0:02:07.7]} 34. g4 {[%clk 0:01:02.2]} 34... fxg4 {[%clk
0:02:08.8]} 35. Bg2 {[%clk 0:01:01.4]} 35... Nf6 {[%clk 0:01:35.8]} 36. Nh1
{[%clk 0:00:57]} 36... Nh5 {[%clk 0:01:36.6]} 37. Nf2 {[%clk 0:00:51.8]} 37...
g3 {[%clk 0:01:27.5]} 38. Nd1 {[%clk 0:00:45.5]} 38... Ng7 {[%clk 0:01:17.9]}
39. Ke1 {[%clk 0:00:43.1]} 39... Bg4 {[%clk 0:01:15.3]} 40. Kf1 {[%clk
0:00:29.2]} 40... Nf5 {[%clk 0:01:16.5]} 41. Bh1 {[%clk 0:00:25]} 41... Nh4
{[%clk 0:01:16.1]} 42. Nb2 {[%clk 0:00:21.6]} 42... Ke6 {[%clk 0:01:06.1]} 43.
Nd1 {[%clk 0:00:20.8]} 43... Kf5 {[%clk 0:01:06.4]} 44. Nb2 {[%clk 0:00:20.1]}
44... Bh3+ {[%clk 0:01:05.2]} 45. Kg1 {[%clk 0:00:20.4]} 45... g2 {[%clk
0:01:05.3]} 46. Bxg2 {[%clk 0:00:18.3]} 46... Nxg2 {[%clk 0:01:05.5]} 47. Nd1
{[%clk 0:00:20.1]} 47... Ne1 {[%clk 0:01:01.4]} 48. Nf2 {[%clk 0:00:18.4]} 48...
g4 {[%clk 0:01:00.5]} 49. Nh1 {[%clk 0:00:16.3]} 49... Nc2 {[%clk 0:01:00.2]}
50. Kf2 {[%clk 0:00:17.2]} 50... Na1 {[%clk 0:01:00.7]} 51. Ng3+ {[%clk
0:00:18]} 51... Kg5 {[%clk 0:01:02]} 52. Nxe4+ {[%clk 0:00:14.5]} 52... dxe4
{[%clk 0:01:02.1]} 53. d5 {[%clk 0:00:15.1]} 53... Nxb3 {[%clk 0:01:02.4]} 54.
Kg3 {[%clk 0:00:14.9]} 54... Nc5 {[%clk 0:01:01.9]} 0-1

[Event "*** Titled Tuesday Blitz"]
[Site "Chess.com"]
[Date "2018.05.01"]
[Round "7"]
[White "Caisachess"]
[Black "PawnEatingZombie"]
[Result "1-0"]
[WhiteElo "2151"]
[BlackElo "1985"]
[TimeControl "180+2"]
[EndTime "14:35:29 PDT"]
[Termination "Caisachess won by resignation"]

1. e4 {[%clk 0:03:01.9]} 1... c5 {[%clk 0:03:00.6]} 2. c3 {[%clk 0:03:02.4]}
2... Nf6 {[%clk 0:03:00.9]} 3. e5 {[%clk 0:03:03.4]} 3... Nd5 {[%clk 0:03:01.4]}
4. d4 {[%clk 0:03:04.9]} 4... cxd4 {[%clk 0:03:01.6]} 5. Nf3 {[%clk 0:03:04.9]}
5... e6 {[%clk 0:03:02.3]} 6. cxd4 {[%clk 0:03:04]} 6... d6 {[%clk 0:03:03.4]}
7. a3 {[%clk 0:03:01.8]} 7... Bd7 {[%clk 0:03:03]} 8. Bd3 {[%clk 0:03:02.4]}
8... Bc6 {[%clk 0:03:03.7]} 9. O-O {[%clk 0:03:03.5]} 9... Nd7 {[%clk 0:03:05]}
10. Qe2 {[%clk 0:03:03.9]} 10... Rc8 {[%clk 0:03:04.2]} 11. Bd2 {[%clk
0:03:03.6]} 11... dxe5 {[%clk 0:03:00.2]} 12. dxe5 {[%clk 0:03:03.7]} 12... Nc5
{[%clk 0:03:00.7]} 13. Bc4 {[%clk 0:03:00.4]} 13... Be7 {[%clk 0:02:41.3]} 14.
Nc3 {[%clk 0:02:59.9]} 14... Nxc3 {[%clk 0:02:34.9]} 15. Bxc3 {[%clk 0:03:00.9]}
15... Ne4 {[%clk 0:02:23.1]} 16. Rad1 {[%clk 0:02:52.5]} 16... Qc7 {[%clk
0:02:20.4]} 17. Bd4 {[%clk 0:02:52]} 17... O-O {[%clk 0:02:09.8]} 18. Rfe1
{[%clk 0:02:50.7]} 18... Rfd8 {[%clk 0:01:49.4]} 19. Bd3 {[%clk 0:02:44.8]}
19... Nc5 {[%clk 0:01:48]} 20. Bb1 {[%clk 0:02:44.8]} 20... g6 {[%clk 0:01:28]}
21. Bc3 {[%clk 0:02:41.9]} 21... Na4 {[%clk 0:01:25.5]} 22. Bd4 {[%clk
0:02:40.1]} 22... b5 {[%clk 0:01:16.8]} 23. h4 {[%clk 0:02:38]} 23... Qb7 {[%clk
0:01:16.4]} 24. h5 {[%clk 0:02:37.3]} 24... b4 {[%clk 0:01:03.2]} 25. axb4
{[%clk 0:02:36.6]} 25... Qxb4 {[%clk 0:01:03]} 26. hxg6 {[%clk 0:02:32.6]} 26...
hxg6 {[%clk 0:01:02.4]} 27. Qe3 {[%clk 0:02:21.5]} 27... Nxb2 {[%clk 0:00:52.1]}
28. Bxb2 {[%clk 0:01:48.3]} 28... Qxb2 {[%clk 0:00:51.1]} 29. Nd4 {[%clk
0:01:45.3]} 29... Bd5 {[%clk 0:00:42.4]} 30. Qh6 {[%clk 0:01:42]} 30... Bf8
{[%clk 0:00:43.2]} 31. Qg5 {[%clk 0:01:41.4]} 31... Bg7 {[%clk 0:00:43.6]} 32.
Nxe6 {[%clk 0:01:34.7]} 32... fxe6 {[%clk 0:00:41.4]} 33. Qxg6 {[%clk
0:01:34.6]} 33... Qb7 {[%clk 0:00:18.7]} 34. Qh7+ {[%clk 0:01:31.9]} 34... Kf8
{[%clk 0:00:19.6]} 35. Re3 {[%clk 0:01:20.8]} 35... Qf7 {[%clk 0:00:12.8]} 36.
Rxd5 {[%clk 0:01:17.3]} 36... Rxd5 {[%clk 0:00:12.4]} 37. Rf3 {[%clk 0:01:17.8]}
37... Rc1+ {[%clk 0:00:12.9]} 38. Kh2 {[%clk 0:01:17.2]} 38... Rdd1 {[%clk
0:00:13.9]} 39. Rxf7+ {[%clk 0:01:15.9]} 39... Kxf7 {[%clk 0:00:15.8]} 40. Qh5+
{[%clk 0:01:02.8]} 40... Kf8 {[%clk 0:00:15.9]} 41. Qf3+ {[%clk 0:01:01.4]}
41... Kg8 {[%clk 0:00:15.6]} 42. Qa8+ {[%clk 0:00:59.6]} 42... Bf8 {[%clk
0:00:17.1]} 43. Ba2 {[%clk 0:00:53.4]} 43... Rh1+ {[%clk 0:00:15]} 44. Kg3
{[%clk 0:00:53.9]} 44... Rc3+ {[%clk 0:00:16]} 45. f3 {[%clk 0:00:55]} 45... Rh6
{[%clk 0:00:14.4]} 46. Qe8 {[%clk 0:00:45.7]} 46... Rc2 {[%clk 0:00:07.4]} 47.
Bxe6+ {[%clk 0:00:45.1]} 1-0

[Event "*** Titled Tuesday Blitz"]
[Site "Chess.com"]
[Date "2018.05.01"]
[Round "7"]
[White "jk13"]
[Black "sergiochess83"]
[Result "0-1"]
[WhiteElo "2524"]
[BlackElo "2793"]
[TimeControl "180+2"]
[EndTime "14:35:42 PDT"]
[Termination "sergiochess83 won on time"]

1. e4 {[%clk 0:03:01.9]} 1... c5 {[%clk 0:03:00]} 2. c3 {[%clk 0:03:02.8]} 2...
e6 {[%clk 0:02:52]} 3. d4 {[%clk 0:03:01.8]} 3... d5 {[%clk 0:02:53.6]} 4. exd5
{[%clk 0:03:02.9]} 4... Qxd5 {[%clk 0:02:53.9]} 5. Nf3 {[%clk 0:03:04.3]} 5...
Nf6 {[%clk 0:02:55.1]} 6. Na3 {[%clk 0:03:04.7]} 6... Nc6 {[%clk 0:02:51.7]} 7.
Be3 {[%clk 0:03:04.1]} 7... cxd4 {[%clk 0:02:19]} 8. Nb5 {[%clk 0:03:05.1]} 8...
Qd8 {[%clk 0:02:20]} 9. Nbxd4 {[%clk 0:03:06.5]} 9... Bd7 {[%clk 0:02:18.9]} 10.
Bd3 {[%clk 0:03:05.5]} 10... Nd5 {[%clk 0:02:13.2]} 11. Bc1 {[%clk 0:03:00.7]}
11... Nxd4 {[%clk 0:02:12.9]} 12. Nxd4 {[%clk 0:03:01.3]} 12... Bc5 {[%clk
0:02:13.5]} 13. Nb3 {[%clk 0:02:39.5]} 13... Bb6 {[%clk 0:02:11.7]} 14. O-O
{[%clk 0:02:30.3]} 14... Qh4 {[%clk 0:02:05.2]} 15. Qf3 {[%clk 0:02:07.7]} 15...
Bc6 {[%clk 0:02:01.4]} 16. Qg3 {[%clk 0:01:41.2]} 16... Qxg3 {[%clk 0:02:00.5]}
17. hxg3 {[%clk 0:01:43.1]} 17... O-O-O {[%clk 0:01:58.4]} 18. Be2 {[%clk
0:01:36.1]} 18... h5 {[%clk 0:01:57.9]} 19. a4 {[%clk 0:01:32.8]} 19... a6
{[%clk 0:01:55.1]} 20. a5 {[%clk 0:01:33.1]} 20... Ba7 {[%clk 0:01:55.8]} 21.
Bf3 {[%clk 0:01:27.1]} 21... h4 {[%clk 0:01:55.5]} 22. gxh4 {[%clk 0:01:26.1]}
22... Rxh4 {[%clk 0:01:56.3]} 23. Bg5 {[%clk 0:01:27]} 23... Rdh8 {[%clk
0:01:47.3]} 24. Bxh4 {[%clk 0:01:27.8]} 24... Rxh4 {[%clk 0:01:49.2]} 25. g3
{[%clk 0:01:09.9]} 25... Rh3 {[%clk 0:01:49.9]} 26. Nd4 {[%clk 0:00:56.6]} 26...
Bxd4 {[%clk 0:01:32.7]} 27. cxd4 {[%clk 0:00:58.5]} 27... Nb4 {[%clk 0:01:34.1]}
28. Bxc6 {[%clk 0:00:54]} 28... Nxc6 {[%clk 0:01:35.1]} 29. Rfd1 {[%clk
0:00:53.5]} 29... Rh5 {[%clk 0:01:36.1]} 30. Kg2 {[%clk 0:00:44.7]} 30... Rb5
{[%clk 0:01:34.6]} 31. Rac1 {[%clk 0:00:39.5]} 31... Kd7 {[%clk 0:01:31]} 32.
Rc5 {[%clk 0:00:33.8]} 32... Rxa5 {[%clk 0:01:26.4]} 33. Rxa5 {[%clk 0:00:22.9]}
33... Nxa5 {[%clk 0:01:28.3]} 34. Kf3 {[%clk 0:00:19.4]} 34... Nc4 {[%clk
0:01:25.6]} 35. b3 {[%clk 0:00:17]} 35... Nb6 {[%clk 0:01:26.5]} 36. Ke4 {[%clk
0:00:16.2]} 36... Nd5 {[%clk 0:01:27.5]} 37. Rc1 {[%clk 0:00:17]} 37... a5
{[%clk 0:01:24.9]} 38. f4 {[%clk 0:00:14.7]} 38... g6 {[%clk 0:01:24.6]} 39. Kd3
{[%clk 0:00:12.8]} 39... b6 {[%clk 0:01:21.3]} 40. Rh1 {[%clk 0:00:08.8]} 40...
Nb4+ {[%clk 0:00:55.6]} 41. Kc4 {[%clk 0:00:08.4]} 41... Kc6 {[%clk 0:00:56.9]}
42. Rh8 {[%clk 0:00:08.2]} 42... b5+ {[%clk 0:00:51.3]} 43. Kc3 {[%clk
0:00:09.6]} 43... Nd5+ {[%clk 0:00:53.1]} 44. Kd3 {[%clk 0:00:08.8]} 44... Nb4+
{[%clk 0:00:43.1]} 45. Ke4 {[%clk 0:00:08]} 45... Kd6 {[%clk 0:00:43]} 46. Rb8
{[%clk 0:00:05.1]} 46... f5+ {[%clk 0:00:42.4]} 47. Ke3 {[%clk 0:00:05.3]} 47...
Nc2+ {[%clk 0:00:30]} 48. Kd3 {[%clk 0:00:05.5]} 48... Nb4+ {[%clk 0:00:31.2]}
49. Kd2 {[%clk 0:00:05.4]} 49... Nc6 {[%clk 0:00:27.9]} 0-1

[Event "*** Titled Tuesday Blitz"]
[Site "Chess.com"]
[Date "2018.05.01"]
[Round "7"]
[White "MikaelyanArman"]
[Black "Orest_Vovk"]
[Result "1-0"]
[WhiteElo "2624"]
[BlackElo "2476"]
[TimeControl "180+2"]
[EndTime "14:35:49 PDT"]
[Termination "MikaelyanArman won on time"]

1. Nf3 {[%clk 0:03:01.9]} 1... h6 {[%clk 0:03:00.5]} 2. d4 {[%clk 0:03:01.8]}
2... g5 {[%clk 0:03:01.2]} 3. e4 {[%clk 0:03:02.3]} 3... Bg7 {[%clk 0:03:02.2]}
4. h4 {[%clk 0:03:01]} 4... g4 {[%clk 0:03:00]} 5. Ne5 {[%clk 0:03:01.7]} 5...
h5 {[%clk 0:02:58.4]} 6. Bc4 {[%clk 0:03:02.3]} 6... e6 {[%clk 0:02:57.9]} 7.
Be3 {[%clk 0:02:23.6]} 7... d6 {[%clk 0:02:57.3]} 8. Nd3 {[%clk 0:02:24.6]} 8...
Nc6 {[%clk 0:02:56.6]} 9. c3 {[%clk 0:02:25.2]} 9... Bd7 {[%clk 0:02:53.1]} 10.
Nd2 {[%clk 0:02:25.9]} 10... Na5 {[%clk 0:02:49.5]} 11. Bg5 {[%clk 0:02:13.6]}
11... Bf6 {[%clk 0:02:41.4]} 12. Bxf6 {[%clk 0:02:13]} 12... Qxf6 {[%clk
0:02:37.2]} 13. b4 {[%clk 0:02:13]} 13... Nxc4 {[%clk 0:02:36.2]} 14. Nxc4
{[%clk 0:02:14.9]} 14... Bb5 {[%clk 0:02:26.3]} 15. Ne3 {[%clk 0:02:13.8]} 15...
Bxd3 {[%clk 0:02:20.6]} 16. Qxd3 {[%clk 0:02:14.2]} 16... a6 {[%clk 0:02:22]}
17. a4 {[%clk 0:02:12.3]} 17... Qf4 {[%clk 0:02:19.3]} 18. b5 {[%clk 0:02:08.2]}
18... Nf6 {[%clk 0:02:17.1]} 19. bxa6 {[%clk 0:01:58.9]} 19... bxa6 {[%clk
0:02:14.8]} 20. Qc4 {[%clk 0:01:48.9]} 20... Qxe4 {[%clk 0:02:10.9]} 21. Qxc7
{[%clk 0:01:46.7]} 21... g3 {[%clk 0:01:48.2]} 22. Qxd6 {[%clk 0:01:47.1]} 22...
gxf2+ {[%clk 0:01:43.7]} 23. Kxf2 {[%clk 0:01:47.8]} 23... Rd8 {[%clk
0:01:03.2]} 24. Qxa6 {[%clk 0:01:32.3]} 24... Qf4+ {[%clk 0:01:00.7]} 25. Ke2
{[%clk 0:01:33.1]} 25... Ne4 {[%clk 0:01:00.2]} 26. Qc6+ {[%clk 0:01:22.5]}
26... Kf8 {[%clk 0:00:53.3]} 27. Raf1 {[%clk 0:01:22.4]} 27... Ng3+ {[%clk
0:00:49.5]} 28. Kd3 {[%clk 0:01:23.5]} 28... Nxf1 {[%clk 0:00:49.5]} 29. Rxf1
{[%clk 0:01:25.4]} 29... Qd6 {[%clk 0:00:50.3]} 30. Qxd6+ {[%clk 0:01:18.6]}
30... Rxd6 {[%clk 0:00:52.2]} 31. Nc4 {[%clk 0:01:18]} 31... Ra6 {[%clk
0:00:52.3]} 32. Ne5 {[%clk 0:01:17.8]} 32... f5 {[%clk 0:00:44.4]} 33. Ng6+
{[%clk 0:01:16.8]} 33... Kg7 {[%clk 0:00:45.3]} 34. Nxh8 {[%clk 0:01:17.8]}
34... Rxa4 {[%clk 0:00:45.4]} 35. Re1 {[%clk 0:01:08.7]} 35... Ra6 {[%clk
0:00:43.8]} 36. d5 {[%clk 0:01:06.1]} 36... exd5 {[%clk 0:00:44.7]} 37. Re8
{[%clk 0:01:04.9]} 37... Ra2 {[%clk 0:00:43]} 38. Kd4 {[%clk 0:00:54.7]} 38...
Rd2+ {[%clk 0:00:42.3]} 39. Kc5 {[%clk 0:00:55.8]} 39... Rd3 {[%clk 0:00:39]}
40. Kb4 {[%clk 0:00:44.9]} 40... Rd2 {[%clk 0:00:23.1]} 41. g3 {[%clk
0:00:39.3]} 41... Rd3 {[%clk 0:00:20.7]} 42. Re5 {[%clk 0:00:26.3]} 42... d4
{[%clk 0:00:15.4]} 43. c4 {[%clk 0:00:25.2]} 43... Rxg3 {[%clk 0:00:14.3]} 44.
Rxf5 {[%clk 0:00:26.5]} 44... Re3 {[%clk 0:00:05.8]} 45. Rxh5 {[%clk 0:00:24.9]}
45... d3 {[%clk 0:00:06.8]} 46. Kc3 {[%clk 0:00:21.4]} 46... Rh3 {[%clk
0:00:07.5]} 47. Kd2 {[%clk 0:00:21.1]} 47... Rf3 {[%clk 0:00:05.8]} 48. c5
{[%clk 0:00:22.2]} 1-0

[Event "*** Titled Tuesday Blitz"]
[Site "Chess.com"]
[Date "2018.05.01"]
[Round "7"]
[White "NormWeinstein"]
[Black "Kawhi_Leonard2"]
[Result "1-0"]
[WhiteElo "2328"]
[BlackElo "2173"]
[TimeControl "180+2"]
[EndTime "14:35:49 PDT"]
[Termination "NormWeinstein won by resignation"]

1. e4 {[%clk 0:02:58.7]} 1... c5 {[%clk 0:03:00]} 2. Nf3 {[%clk 0:02:58.5]} 2...
d6 {[%clk 0:03:01.2]} 3. Nc3 {[%clk 0:02:59.4]} 3... Nc6 {[%clk 0:03:01.6]} 4.
d4 {[%clk 0:02:59.7]} 4... cxd4 {[%clk 0:03:02.7]} 5. Nxd4 {[%clk 0:03:00.9]}
5... g6 {[%clk 0:03:04.3]} 6. Be3 {[%clk 0:03:00.6]} 6... Bg7 {[%clk 0:03:05.6]}
7. Bc4 {[%clk 0:03:01.8]} 7... Nf6 {[%clk 0:03:06.4]} 8. h3 {[%clk 0:03:02.6]}
8... O-O {[%clk 0:03:06]} 9. Bb3 {[%clk 0:03:04]} 9... Qa5 {[%clk 0:02:59.5]}
10. O-O {[%clk 0:03:04.4]} 10... Bd7 {[%clk 0:02:59.6]} 11. Re1 {[%clk
0:03:05.2]} 11... Rfe8 {[%clk 0:02:37.9]} 12. Qd2 {[%clk 0:03:01.1]} 12... Nxe4
{[%clk 0:02:27.4]} 13. Nxc6 {[%clk 0:03:00.2]} 13... Bxc3 {[%clk 0:02:22.3]} 14.
Nxa5 {[%clk 0:02:19.3]} 14... Bxd2 {[%clk 0:02:21.5]} 15. Bxd2 {[%clk
0:02:13.7]} 15... Nxd2 {[%clk 0:02:22.2]} 16. Nxb7 {[%clk 0:01:59.1]} 16... Nxb3
{[%clk 0:02:05.9]} 17. axb3 {[%clk 0:01:59]} 17... Be6 {[%clk 0:01:57.5]} 18.
Na5 {[%clk 0:01:51.1]} 18... Rec8 {[%clk 0:01:53.2]} 19. c3 {[%clk 0:01:49.6]}
19... Rab8 {[%clk 0:01:50.5]} 20. b4 {[%clk 0:01:49.7]} 20... h5 {[%clk
0:01:44.9]} 21. Ra3 {[%clk 0:01:43.1]} 21... d5 {[%clk 0:01:36.4]} 22. Rea1
{[%clk 0:01:42.4]} 22... d4 {[%clk 0:01:36.8]} 23. Rd1 {[%clk 0:01:28.7]} 23...
dxc3 {[%clk 0:01:35.1]} 24. bxc3 {[%clk 0:01:28.5]} 24... Rc7 {[%clk 0:01:36.3]}
25. Rd3 {[%clk 0:01:07.7]} 25... Rbc8 {[%clk 0:01:35.8]} 26. Kf1 {[%clk
0:01:06.6]} 26... h4 {[%clk 0:01:31.2]} 27. Ke1 {[%clk 0:01:07.4]} 27... g5
{[%clk 0:01:32.4]} 28. Kd2 {[%clk 0:01:07.9]} 28... f6 {[%clk 0:01:26.4]} 29.
Nb3 {[%clk 0:01:08.6]} 29... Bc4 {[%clk 0:01:18.5]} 30. Re3 {[%clk 0:01:00.2]}
30... Rd7+ {[%clk 0:01:09.6]} 31. Kc2 {[%clk 0:00:52]} 31... Rcd8 {[%clk
0:01:09.6]} 32. Nd4 {[%clk 0:00:37.7]} 32... e5 {[%clk 0:01:09.7]} 33. Nf3
{[%clk 0:00:38.2]} 33... Bd3+ {[%clk 0:01:01.4]} 34. Kb2 {[%clk 0:00:37.3]}
34... Bf1 {[%clk 0:01:01.5]} 35. Ne1 {[%clk 0:00:22.3]} 35... Rd2+ {[%clk
0:01:00.5]} 36. Kb3 {[%clk 0:00:22.8]} 36... Rxf2 {[%clk 0:01:01.2]} 37. Rxa7
{[%clk 0:00:23.5]} 37... Bxg2 {[%clk 0:00:58.6]} 38. Nxg2 {[%clk 0:00:23.5]}
38... Rxg2 {[%clk 0:00:59.1]} 39. Rf3 {[%clk 0:00:23]} 39... Rd6 {[%clk
0:00:53.3]} 40. b5 {[%clk 0:00:20.6]} 40... Rg3 {[%clk 0:00:53.3]} 41. Rf1
{[%clk 0:00:16.3]} 41... Rxh3 {[%clk 0:00:43.4]} 42. Ra6 {[%clk 0:00:17]} 42...
Rhd3 {[%clk 0:00:39.8]} 43. Rxd6 {[%clk 0:00:14.2]} 43... Rxd6 {[%clk
0:00:39.7]} 44. c4 {[%clk 0:00:15.7]} 44... h3 {[%clk 0:00:08.4]} 45. c5 {[%clk
0:00:16.5]} 45... Rd3+ {[%clk 0:00:08.2]} 46. Kc4 {[%clk 0:00:17.2]} 46... Rd4+
{[%clk 0:00:09.6]} 47. Kc3 {[%clk 0:00:18.1]} 47... Rh4 {[%clk 0:00:09.1]} 48.
b6 {[%clk 0:00:18.3]} 48... Kf7 {[%clk 0:00:09.3]} 49. b7 {[%clk 0:00:18.6]}
49... Rh8 {[%clk 0:00:09.5]} 50. c6 {[%clk 0:00:19.5]} 50... g4 {[%clk
0:00:10.9]} 51. c7 {[%clk 0:00:20.4]} 51... g3 {[%clk 0:00:08.4]} 52. c8=Q
{[%clk 0:00:21.1]} 52... Rxc8+ {[%clk 0:00:08.5]} 53. bxc8=Q {[%clk 0:00:21.4]}
53... g2 {[%clk 0:00:10.4]} 54. Qxh3 {[%clk 0:00:22.1]} 1-0